bitfinex/quotes_SOLUSD_20240712
["timestamp","ask_amount","ask_price","bid_price","bid_amount"]
[1720742812025,20.0,136.33,136.29,10.0]
[1720742812233,7.3363,136.31,136.28,10.0]
[1720742812907,40.0559,136.32,136.28,10.0]
[1720742813107,20.0,136.31,136.3,10.0]
[1720742813431,20.0,136.31,136.28,20.0]
[1720742813928,87.5,136.36,136.28,10.0]
[1720742813929,20.0,136.32,136.28,10.0]
[1720742814103,20.0,136.33,136.28,10.0]
[1720742814300,27.3351,136.33,136.28,10.0]
[1720742814503,20.0,136.33,136.32,10.0]
[1720742814816,32.72,136.37,136.34,10.0]
[1720742815333,40.0532,136.37,136.34,10.0]
[1720742815509,32.72,136.37,136.34,10.0]
[1720742815706,40.0533,136.37,136.34,10.0]
[1720742815926,7.3337,136.36,136.32,10.0]
[1720742816135,27.3339,136.36,136.32,10.0]
[1720742816604,20.0,136.36,136.34,10.0]
[1720742817308,9.40968724,136.41,136.36,10.0]
[1720742817309,7.3319,136.39,136.36,10.0]
[1720742817735,7.3324,136.38,136.36,10.0]
[1720742817910,7.3331,136.37,136.34,10.0]
[1720742818411,51.0499,136.39,136.34,10.0]
[1720742818750,7.3333,136.37,136.34,10.0]
[1720742819236,7.3326,136.38,136.36,10.0]
[1720742819615,7.3326,136.38,136.34,10.0]
[1720742819815,20.0,136.37,136.34,10.0]
[1720742820145,20.0,136.37,136.36,10.0]
[1720742820321,32.72,136.39,136.36,10.0]
[1720742820523,7.3312,136.41,136.36,10.0]
[1720742820719,7.3314,136.4,136.36,10.0]
[1720742821021,7.3309,136.41,136.39,10.0]
[1720742821231,40.05,136.43,136.39,10.0]
[1720742821428,32.72,136.43,136.39,10.0]
[1720742821607,32.72,136.43,136.41,10.0]
[1720742822928,32.72,136.46,136.4,0.17]
[1720742823129,20.0,136.42,136.39,20.0]
[1720742823351,32.72,136.42,136.36,10.0]
[1720742823634,27.3312,136.41,136.38,10.0]
[1720742823836,20.0,136.41,136.4,10.0]
[1720742825220,20.0,136.41,136.4,10.17]
[1720742825425,20.0,136.41,136.4,10.34]
[1720742826020,27.3308,136.41,136.4,10.0]
[1720742826335,20.0,136.41,136.4,10.0]
[1720742827142,27.331,136.41,136.38,20.0]
[1720742827834,7.3316,136.4,136.38,20.0]
[1720742828027,7.3319,136.39,136.36,20.0]
[1720742828236,20.0,136.38,136.36,20.0]
[1720742828736,7.3309,136.41,136.39,10.0]
[1720742828939,40.0505,136.42,136.39,10.0]
[1720742829140,20.0,136.4,136.39,10.0]
[1720742829512,20.0,136.4,136.37,10.0]
[1720742829717,7.3314,136.4,136.37,10.0]
[1720742829955,27.3319,136.39,136.37,10.0]
[1720742830241,20.0,136.39,136.37,10.0]
[1720742830541,20.0,136.4,136.39,10.0]
[1720742830738,20.0,136.4,136.37,10.0]
[1720742830923,32.72,136.42,136.37,10.0]
[1720742830924,20.0,136.41,136.37,10.0]
[1720742831324,20.0,136.41,136.39,10.0]
[1720742832434,27.331,136.41,136.39,10.0]
[1720742832739,20.0,136.41,136.39,10.0]
[1720742833838,27.3309,136.41,136.39,10.0]
[1720742834333,7.3313,136.4,136.39,10.0]
[1720742834645,27.3313,136.4,136.39,10.0]
[1720742835174,27.3313,136.4,136.37,10.0]
[1720742835326,20.0,136.39,136.37,10.0]
[1720742836047,27.3311,136.41,136.37,10.0]
[1720742836227,7.3314,136.4,136.37,10.0]
[1720742836440,20.0,136.39,136.37,10.0]
[1720742836752,27.3319,136.39,136.37,10.0]
[1720742837322,7.3329,136.37,136.35,10.0]
[1720742837630,20.0,136.39,136.31,10.0]
[1720742837631,20.0,136.36,136.31,10.0]
[1720742837945,7.3357,136.32,136.29,20.0]
[1720742838652,7.3357,136.32,136.29,10.0]
[1720742839538,27.3362,136.31,136.29,10.0]
[1720742839749,27.3362,136.31,136.3,10.0]
[1720742839750,20.0,136.31,136.3,10.0]
[1720742840831,20.0,136.31,136.28,10.0]
[1720742841148,27.3364,136.31,136.28,10.0]
[1720742841345,20.0,136.31,136.26,10.0]
[1720742841541,7.3366,136.31,136.27,10.0]
[1720742841860,20.0,136.3,136.27,10.0]
[1720742842245,20.0,136.3,136.29,10.0]
[1720742842937,27.3369,136.3,136.27,10.0]
[1720742843133,7.3373,136.29,136.27,10.0]
[1720742843336,27.3371,136.3,136.27,10.0]
[1720742843532,7.3375,136.29,136.27,10.0]
[1720742843733,20.0,136.3,136.27,10.0]
[1720742843962,20.0,136.32,136.27,10.0]
[1720742844558,20.0,136.33,136.27,10.0]
[1720742844749,7.3366,136.31,136.27,10.0]
[1720742844947,20.0,136.3,136.27,10.0]
[1720742845251,27.3367,136.3,136.27,10.0]
[1720742845456,20.0,136.3,136.27,10.0]
[1720742845632,20.0,136.33,136.27,10.0]
[1720742846162,27.3352,136.33,136.27,10.0]
[1720742846334,27.3352,136.33,136.29,10.0]
[1720742846535,20.0,136.33,136.29,10.0]
[1720742846747,35.7419794,136.34,136.31,10.0]
[1720742846949,32.72,136.36,136.31,10.0]
[1720742847152,7.3343,136.35,136.31,10.0]
[1720742847352,7.3343,136.35,136.33,10.0]
[1720742847536,7.3343,136.35,136.31,10.0]
[1720742847860,7.3348,136.34,136.31,10.0]
[1720742848035,7.3341,136.35,136.31,10.0]
[1720742848242,7.3341,136.35,136.33,10.0]
[1720742848553,40.0537,136.36,136.33,10.0]
[1720742849333,7.3347,136.34,136.31,10.0]
[1720742849561,7.3342,136.35,136.32,0.34]
[1720742849735,32.72,136.36,136.33,10.0]
[1720742849934,32.72,136.36,136.35,10.0]
[1720742850361,52.72,136.36,136.35,10.0]
[1720742850567,52.72,136.36,136.34,0.17]
[1720742850755,20.0,136.35,136.34,0.34]
[1720742851772,20.0,136.35,136.33,10.0]
[1720742852968,20.0,136.35,136.33,20.0]
[1720742853755,32.72,136.36,136.35,10.0]
[1720742853939,16.01055514,136.41,136.37,10.0]
[1720742854134,13.73801302,136.41,136.37,10.0]
[1720742854446,7.3315,136.4,136.37,10.0]
[1720742854956,7.332,136.39,136.37,10.0]
[1720742855256,7.3314,136.4,136.37,10.0]
[1720742855466,6.40691302,136.41,136.37,10.0]
[1720742855758,13.90964722,136.45,136.42,10.0]
[1720742855963,7.3285,136.46,136.44,10.0]
[1720742856662,32.72,136.47,136.44,10.0]
[1720742856868,32.72,136.47,136.46,10.0]
[1720742857045,16.18357912,136.5,136.46,10.0]
[1720742857241,7.3271,136.48,136.46,10.0]
[1720742858450,20.0,136.47,136.46,10.0]
[1720742858654,27.3277,136.47,136.44,10.0]
[1720742858866,7.3283,136.46,136.43,0.17]
[1720742859066,20.0,136.45,136.42,10.0]
[1720742859255,27.329,136.45,136.42,10.0]
[1720742859445,7.3292,136.44,136.42,10.0]
[1720742859768,27.3288,136.45,136.42,10.0]
[1720742859982,20.0,136.45,136.4,10.0]
[1720742860269,7.3288,136.45,136.4,10.0]
[1720742860469,20.0,136.44,136.42,10.0]
[1720742861156,27.3283,136.46,136.42,10.0]
[1720742861465,20.0,136.46,136.4,10.0]
[1720742861676,7.3302,136.43,136.41,0.34]
[1720742861977,32.72,136.43,136.4,10.0]
[1720742863070,32.72,136.43,136.42,10.0]
[1720742863270,52.72,136.43,136.4,10.0]
[1720742863447,32.72,136.43,136.42,10.0]
[1720742863873,52.72,136.43,136.42,10.0]
[1720742864049,20.0,136.43,136.42,10.0]
[1720742864948,20.0,136.43,136.42,55.34]
[1720742865250,20.0,136.43,136.42,55.0]
[1720742865467,20.0,136.43,136.42,10.0]
[1720742866253,20.0,136.43,136.4,10.0]
[1720742866960,27.3301,136.43,136.4,10.0]
[1720742867157,20.0,136.43,136.4,10.0]
[1720742867365,20.0,136.43,136.42,10.0]
[1720742868052,20.0,136.43,136.42,55.17]
[1720742868246,20.0,136.43,136.42,55.34]
[1720742868749,48.96,136.43,136.42,55.34]
[1720742869052,28.96,136.43,136.42,55.34]
[1720742869451,28.96,136.43,136.42,10.0]
[1720742871042,28.96,136.43,136.41,10.0]
[1720742871274,65.25,136.43,136.4,10.0]
[1720742871458,65.25,136.43,136.38,10.0]
[1720742871459,28.96,136.41,136.38,10.0]
[1720742871660,28.96,136.39,136.38,10.0]
[1720742872645,28.96,136.39,136.38,55.34]
[1720742872956,28.96,136.39,136.38,10.0]
[1720742873856,20.0,136.42,136.41,10.0]
[1720742874177,7.328,136.47,136.43,10.0]
[1720742874346,28.96,136.44,136.43,10.0]
[1720742874549,48.96,136.44,136.43,10.0]
[1720742875353,48.96,136.44,136.42,10.0]
[1720742875555,20.0,136.43,136.42,10.0]
[1720742875955,20.0,136.43,136.42,10.17]
[1720742876159,20.0,136.43,136.42,55.34]
[1720742876353,20.0,136.43,136.42,10.0]
[1720742877087,39.9082,136.46,136.44,10.0]
[1720742877088,32.58,136.46,136.44,10.0]
[1720742877779,32.58,136.46,136.42,55.34]
[1720742878095,39.9084,136.46,136.42,55.34]
[1720742878293,20.0,136.45,136.42,55.34]
[1720742879390,27.3287,136.45,136.42,55.34]
[1720742879595,20.0,136.45,136.42,55.34]
[1720742879882,20.0,136.45,136.44,10.0]
[1720742880085,20.0,136.45,136.44,10.34]
[1720742880287,20.0,136.45,136.44,10.0]
[1720742880877,20.0,136.45,136.44,10.34]
[1720742881065,32.58,136.46,136.44,10.34]
[1720742881380,32.58,136.46,136.44,10.0]
[1720742881585,19.93346644,136.49,136.46,10.0]
[1720742881777,20.0,136.48,136.46,10.0]
[1720742882181,20.0,136.48,136.47,10.0]
[1720742882375,20.0,136.48,136.47,55.34]
[1720742882569,20.0,136.48,136.47,20.0]
[1720742882770,39.9061,136.5,136.47,10.0]
[1720742882982,32.58,136.5,136.49,10.0]
[1720742884084,52.58,136.5,136.49,10.0]
[1720742884594,20.0,136.5,136.49,10.0]
[1720742886394,20.0,136.5,136.46,0.17]
[1720742886395,0.8546782,136.54,136.52,10.0]
[1720742886570,8.1786782,136.54,136.5,20.0]
[1720742886895,32.58,136.51,136.49,0.34]
[1720742887196,32.58,136.51,136.48,10.0]
[1720742887399,32.58,136.51,136.5,10.0]
[1720742887713,52.58,136.51,136.5,10.0]
[1720742888389,52.58,136.51,136.5,10.34]
[1720742888989,32.58,136.51,136.5,10.34]
[1720742889580,52.58,136.51,136.5,10.34]
[1720742890097,52.58,136.51,136.49,10.0]
[1720742891097,52.58,136.51,136.5,10.17]
[1720742891291,52.58,136.51,136.5,10.34]
[1720742892098,52.58,136.51,136.48,10.0]
[1720742892476,20.0,136.5,136.47,10.0]
[1720742892882,20.0,136.5,136.48,10.0]
[1720742894296,20.0,136.5,136.47,10.0]
[1720742894675,20.0,136.5,136.48,10.0]
[1720742895276,20.0,136.5,136.49,0.34]
[1720742896397,20.0,136.5,136.48,10.0]
[1720742896582,20.0,136.5,136.47,10.0]
[1720742897205,20.0,136.5,136.49,10.0]
[1720742897375,20.0,136.5,136.49,20.0]
[1720742898190,32.58,136.52,136.49,20.0]
[1720742898389,32.58,136.52,136.5,0.34]
[1720742898707,28.92,136.51,136.49,20.0]
[1720742898904,28.92,136.51,136.5,0.34]
[1720742902098,28.92,136.51,136.5,22.3399]
[1720742902309,28.92,136.53,136.52,20.0]
[1720742902477,28.92,136.53,136.52,20.34]
[1720742903812,28.92,136.53,136.5,20.0]
[1720742903985,28.92,136.51,136.5,20.0]
[1720742904501,28.92,136.51,136.5,10.0]
[1720742904803,28.92,136.51,136.48,10.0]
[1720742904804,57.84,136.51,136.48,10.0]
[1720742904977,28.92,136.49,136.48,10.0]
[1720742905176,48.92,136.49,136.46,10.0]
[1720742905379,28.92,136.47,136.43,10.0]
[1720742905604,28.92,136.44,136.43,10.0]
[1720742906295,28.92,136.44,136.41,11.46311653]
[1720742906496,20.0,136.46,136.41,11.46311653]
[1720742906497,28.92,136.42,136.41,11.46311653]
[1720742906906,28.92,136.42,136.39,20.0]
[1720742907110,28.92,136.4,136.39,10.0]
[1720742907310,48.92,136.4,136.34,10.0]
[1720742907484,28.92,136.35,136.34,10.0]
[1720742907682,28.92,136.35,136.33,10.0]
[1720742907988,20.0,136.34,136.32,10.0]
[1720742908188,28.92,136.33,136.32,20.0]
[1720742908607,6.2217,136.4,136.35,10.0]
[1720742908789,32.62,136.37,136.34,10.0]
[1720742909000,20.0,136.36,136.34,10.0]
[1720742909691,20.0,136.36,136.33,10.0]
[1720742909886,20.0,136.36,136.35,20.0]
[1720742910098,32.62,136.44,136.4,10.0]
[1720742910302,32.62,136.44,136.38,10.0]
[1720742910594,32.62,136.44,136.39,0.17]
[1720742911210,32.62,136.44,136.39,0.34]
[1720742911384,39.9492,136.44,136.39,0.34]
[1720742911785,32.62,136.44,136.39,0.34]
[1720742912209,20.0,136.43,136.4,10.0]
[1720742912396,20.0,136.43,136.41,0.17]
[1720742914005,20.0,136.43,136.39,0.57705118]
[1720742914706,20.0,136.43,136.4,10.0]
[1720742915013,20.0,136.43,136.41,0.17]
[1720742916697,20.0,136.43,136.39,0.17]
[1720742917101,20.0,136.43,136.39,0.59690948]
[1720742917415,20.0,136.43,136.39,1.63616623]
[1720742917711,20.0,136.43,136.4,10.0]
[1720742918094,20.0,136.43,136.39,1.63616623]
[1720742918305,20.0,136.43,136.39,0.17]
[1720742918694,20.0,136.43,136.4,10.0]
[1720742918894,20.0,136.43,136.39,1.63626966]
[1720742920310,20.0,136.43,136.4,10.0]
[1720742921403,20.0,136.43,136.39,0.17]
[1720742923316,20.0,136.43,136.38,10.0]
[1720742923499,32.62,136.4,136.38,10.0]
[1720742923694,20.0,136.39,136.38,10.0]
[1720742924811,20.0,136.39,136.35,10.0]
[1720742925395,32.62,136.36,136.32,10.0]
[1720742925635,20.0,136.35,136.32,10.0]
[1720742926629,20.0,136.35,136.31,10.0]
[1720742926836,32.62,136.32,136.31,10.0]
[1720742927024,52.62,136.32,136.31,10.0]
[1720742928202,52.62,136.32,136.31,10.34]
[1720742928624,49.01,136.32,136.31,10.34]
[1720742933615,49.01,136.32,136.31,10.17]
[1720742934809,49.01,136.32,136.31,10.34]
[1720742935025,49.01,136.32,136.31,10.17]
[1720742935234,49.01,136.32,136.31,10.0]
[1720742936834,49.01,136.32,136.31,10.34]
[1720742937334,49.01,136.32,136.31,20.34]
[1720742938141,49.01,136.32,136.31,20.17]
[1720742938436,49.01,136.32,136.25,6.603]
[1720742938614,29.01,136.28,136.26,20.17]
[1720742938819,29.01,136.28,136.25,6.603]
[1720742939428,29.01,136.26,136.25,6.603]
[1720742940056,29.01,136.26,136.24,23.92705177]
[1720742940217,20.0,136.32,136.25,10.0]
[1720742940427,29.01,136.28,136.27,10.0]
[1720742940931,29.01,136.28,136.25,10.0]
[1720742941135,20.0,136.31,136.26,0.17]
[1720742941344,29.01,136.27,136.26,0.17]
[1720742941838,29.01,136.27,136.26,0.34]
[1720742942648,29.01,136.27,136.26,0.17]
[1720742943327,29.01,136.27,136.22,26.4452]
[1720742943652,29.01,136.23,136.22,10.0]
[1720742943860,20.0,136.26,136.19,24.21405416]
[1720742944154,29.01,136.21,136.18,10.0]
[1720742944346,29.01,136.19,136.18,10.0]
[1720742944851,29.01,136.19,136.15,34.21484829]
[1720742945040,29.01,136.16,136.15,26.5372]
[1720742947846,29.01,136.16,136.15,20.34]
[1720742950044,29.01,136.18,136.17,10.0]
[1720742950244,29.01,136.18,136.17,10.34]
[1720742950439,29.01,136.18,136.17,0.34]
[1720742950639,29.01,136.18,136.15,20.0]
[1720742950939,29.01,136.16,136.13,20.0]
[1720742951128,29.01,136.16,136.15,10.0]
[1720742951853,29.01,136.16,136.13,20.0]
[1720742952157,29.01,136.14,136.11,20.0]
[1720742952463,29.01,136.12,136.09,10.0]
[1720742952754,29.01,136.1,136.09,20.0]
[1720742952942,16.5738,136.18,136.11,20.0]
[1720742953147,29.01,136.14,136.11,20.0]
[1720742953741,29.01,136.14,136.12,0.34]
[1720742954453,29.01,136.14,136.12,0.17]
[1720742954768,32.73,136.15,136.09,10.0]
[1720742955064,20.0,136.14,136.13,0.17]
[1720742956744,20.0,136.14,136.11,0.17]
[1720742957247,20.0,136.14,136.09,10.0]
[1720742959035,20.0,136.14,136.13,0.34]
[1720742959468,20.0,136.14,136.1,10.0]
[1720742959969,20.0,136.14,136.11,0.17]
[1720742960174,20.0,136.14,136.11,0.34]
[1720742961244,20.0,136.14,136.11,0.17]
[1720742961639,20.0,136.14,136.08,10.0]
[1720742962145,27.3454,136.14,136.08,10.0]
[1720742962353,7.346,136.13,136.06,36.9757782]
[1720742962650,20.0,136.12,136.06,20.8546782]
[1720742963059,20.0,136.12,136.06,10.8546782]
[1720742963247,44.7633,136.14,136.06,0.8546782]
[1720742963248,32.73,136.11,136.06,0.8546782]
[1720742963443,20.0,136.1,136.06,0.8546782]
[1720742964952,27.3477,136.1,136.06,0.8546782]
[1720742965149,20.0,136.1,136.06,0.8546782]
[1720742967045,7.3481,136.09,136.06,0.8546782]
[1720742967247,20.0,136.1,136.06,0.8546782]
[1720742967248,20.0,136.08,136.06,0.8546782]
[1720742967447,20.0,136.1,136.06,0.8546782]
[1720742967758,20.0,136.1,136.07,7.6888]
[1720742968151,20.0,136.14,136.07,7.6888]
[1720742968350,49.4056,136.14,136.07,7.6888]
[1720742969065,20.0,136.14,136.07,10.34]
[1720742969677,20.0,136.14,136.09,10.0]
[1720742969853,20.0,136.14,136.1,0.34]
[1720742970053,27.3454,136.14,136.1,0.17]
[1720742970256,7.346,136.13,136.07,16.0501]
[1720742970466,20.0,136.12,136.08,0.17]
[1720742971686,20.0,136.13,136.08,0.17]
[1720742971888,20.0,136.13,136.08,0.34]
[1720742972066,7.347,136.11,136.08,0.34]
[1720742972264,20.0,136.13,136.08,0.34]
[1720742972574,20.0,136.13,136.07,0.34]
[1720742972760,32.73,136.11,136.06,10.8546782]
[1720742972961,52.73,136.1,136.06,0.8546782]
[1720742973383,60.0775,136.1,136.06,0.8546782]
[1720742973784,52.73,136.1,136.06,0.8546782]
[1720742975489,20.0,136.1,136.06,0.8546782]
[1720742976078,20.0,136.1,136.07,7.3489]
[1720742976391,32.73,136.11,136.08,7.6883]
[1720742976698,29.1,136.09,136.08,0.34]
[1720742977197,29.1,136.09,136.08,10.34]
[1720742977376,29.1,136.15,136.08,16.6953]
[1720742977695,29.1,136.1,136.08,0.34]
[1720742977878,29.1,136.1,136.07,0.34]
[1720742978572,29.1,136.08,136.07,0.34]
[1720742980570,29.1,136.08,136.06,0.8546782]
[1720742981193,58.2,136.08,136.06,0.8546782]
[1720742981381,20.0,136.07,136.06,0.8546782]
[1720742983888,20.0,136.07,136.06,1.0246782]
[1720742984205,20.0,136.07,136.06,1.1946782]
[1720742984509,20.0,136.07,136.06,1.0246782]
[1720742984714,20.0,136.07,136.06,1.1946782]
[1720742985612,20.0,136.07,136.06,1.0246782]
[1720742985815,20.0,136.07,136.06,0.8546782]
[1720742986409,20.0,136.07,136.06,1.1946782]
[1720742986600,20.0,136.07,136.06,1.0246782]
[1720742986787,20.0,136.07,136.06,0.8546782]
[1720742987397,20.0,136.07,136.06,1.1946782]
[1720742989520,20.0,136.07,136.06,1.0246782]
[1720742989730,20.0,136.07,136.06,0.8546782]
[1720742991526,20.0,136.07,136.01,23.3737]
[1720742991719,29.1,136.03,136.02,0.17]
[1720742992109,29.1,136.03,136.02,7.5218]
[1720742992310,29.1,136.03,136.01,10.0]
[1720742992512,29.1,136.03,136.0,10.0]
[1720742992720,29.1,136.03,136.01,10.0]
[1720742992908,29.1,136.03,136.0,17.3528]
[1720742993110,29.1,136.03,136.0,10.0]
[1720742993504,29.1,136.03,136.01,10.0]
[1720742993818,29.1,136.03,136.02,0.17]
[1720742994540,29.1,136.03,136.01,10.0]
[1720742995202,29.1,136.03,136.0,17.6929]
[1720742995405,29.1,136.03,136.01,10.34]
[1720742995623,29.1,136.03,136.01,0.34]
[1720742996433,29.1,136.03,136.0,10.0]
[1720742996607,29.1,136.01,136.0,10.0]
[1720742996933,29.1,136.01,136.0,10.34]
[1720742997230,29.1,136.01,136.0,10.0]
[1720742997738,20.0,136.07,136.0,10.0]
[1720742997908,29.1,136.01,136.0,10.0]
[1720742999512,49.1,136.01,136.0,10.17]
[1720742999712,49.1,136.01,136.0,10.0]
[1720743000633,49.1,136.01,136.0,10.17]
[1720743000813,29.1,136.01,136.0,10.0]
[1720743001533,29.1,136.01,136.0,10.17]
[1720743001736,29.1,136.01,136.0,10.0]
[1720743001921,49.1,136.01,136.0,10.0]
[1720743002613,2.93052522,136.08,136.0,20.0]
[1720743002940,29.1,136.03,136.0,10.0]
[1720743003134,29.1,136.03,136.0,17.3528]
[1720743003441,29.1,136.03,136.02,7.3518]
[1720743003614,29.1,136.03,136.02,17.6918]
[1720743003812,29.1,136.05,136.02,0.34]
[1720743004119,29.1,136.03,136.02,0.17]
[1720743004310,29.1,136.03,136.02,0.34]
[1720743004725,29.1,136.03,136.02,0.17]
[1720743005032,29.1,136.03,136.01,7.692]
[1720743005240,29.1,136.03,136.01,0.34]
[1720743007335,29.1,136.03,136.02,7.3518]
[1720743007543,29.1,136.03,136.02,7.6918]
[1720743007740,29.1,136.05,136.02,17.6918]
[1720743007943,29.1,136.05,136.03,7.5212]
[1720743008115,29.1,136.05,136.04,0.17]
[1720743009422,29.1,136.05,136.03,0.34]
[1720743009640,29.1,136.05,136.03,17.6912]
[1720743009844,29.1,136.05,136.04,17.3507]
[1720743010137,29.1,136.05,136.04,0.34]
[1720743011046,29.1,136.05,136.01,10.0]
[1720743011222,29.1,136.03,136.0,10.0]
[1720743011626,29.1,136.03,136.0,17.3528]
[1720743011828,29.1,136.03,136.01,10.0]
[1720743012022,29.1,136.03,136.01,17.3521]
[1720743012244,29.1,136.03,136.01,17.3519]
[1720743012429,29.1,136.03,136.01,7.3519]
[1720743012746,29.1,136.05,136.02,7.6918]
[1720743012961,25.91507608,136.11,136.02,7.6918]
[1720743012962,13.8666,136.13,136.05,10.0]
[1720743013126,15.1538,136.14,136.07,20.0]
[1720743013330,29.1,136.1,136.08,0.34]
[1720743013648,29.1,136.1,136.08,9.15755276]
[1720743014240,29.1,136.1,136.09,17.348]
[1720743014552,29.1,136.1,136.09,0.34]
[1720743015049,29.1,136.1,136.08,0.34]
[1720743015932,20.0,136.09,136.05,10.0]
[1720743016130,29.1,136.07,136.05,10.0]
[1720743016336,29.1,136.07,136.05,20.0]
[1720743016745,29.1,136.07,136.05,10.0]
[1720743016941,49.1,136.09,136.05,10.0]
[1720743017130,49.1,136.09,136.07,10.0]
[1720743017328,29.1,136.09,136.07,10.0]
[1720743017639,29.1,136.09,136.08,0.17]
[1720743017829,29.1,136.09,136.08,0.34]
[1720743018633,6.0792,136.16,136.09,20.0]
[1720743018835,29.1,136.13,136.1,1.80512023]
[1720743019250,29.1,136.13,136.1,1.8050126]
[1720743019442,29.1,136.13,136.11,1.46501259]
[1720743019641,29.1,136.13,136.1,0.34]
[1720743021144,29.1,136.13,136.11,20.0]
[1720743021346,278.7,136.28,136.13,20.0]
[1720743021347,29.1,136.15,136.13,20.0]
[1720743021544,29.1,136.17,136.14,1.80526992]
[1720743021760,29.1,136.17,136.15,11.46516229]
[1720743021958,29.1,136.17,136.16,0.17]
[1720743022143,29.1,136.19,136.16,10.34]
[1720743022534,29.1,136.19,136.17,10.0]
[1720743022743,29.1,136.19,136.18,0.34]
[1720743023444,29.1,136.19,136.18,0.17]
[1720743023737,29.1,136.19,136.14,26.0165]
[1720743023929,29.1,136.19,136.15,0.17]
[1720743024142,29.1,136.17,136.15,0.17]
[1720743024341,29.1,136.17,136.15,0.34]
[1720743025231,29.1,136.17,136.11,10.0]
[1720743025536,29.1,136.15,136.11,10.0]
[1720743025742,29.1,136.15,136.13,10.0]
[1720743026165,20.0,136.16,136.13,10.0]
[1720743026961,20.0,136.16,136.14,0.17]
[1720743027331,20.0,136.16,136.11,10.0]
[1720743027769,20.0,136.16,136.13,20.0]
[1720743028143,20.0,136.16,136.13,10.0]
[1720743028344,20.0,136.16,136.13,20.0]
[1720743028546,20.0,136.16,136.14,0.34]
[1720743028835,29.1,136.17,136.15,10.0]
[1720743029039,29.1,136.19,136.16,0.34]
[1720743029763,29.1,136.19,136.17,10.0]
[1720743029942,29.1,136.19,136.18,0.34]
[1720743030144,29.1,136.19,136.16,0.17]
[1720743030377,20.0,136.18,136.16,0.34]
[1720743030650,20.0,136.18,136.15,10.0]
[1720743031568,20.0,136.18,136.13,20.0]